[Event "Titled Tuesday Blitz November 08 Early 2022"]
[White "Bibilashvili, Lali"]
[Black "Thiel, Thomas"]
[WhiteFideId "13604236"]
[BlackFideId "4615964"]
[WhiteElo "1819"]
[BlackElo "2206"]
[Result "1/2-1/2"]
[Round "10"]
[TimeControl "180+1"]
[Date "2022.11.09"]
[WhiteClock "0:00:22"]
[BlackClock "0:00:34"]

1. c4 {[%clk 0:03:00]}  Nf6 {[%clk 0:02:58]} 2. g3 {[%clk 0:02:57]}  g6 {[%clk 0:02:57]} 3. Bg2 {[%clk 0:02:56]}  c6 {[%clk 0:02:57]} 4. e3 {[%clk 0:02:52]}  d5 {[%clk 0:02:56]} 5. cxd5 {[%clk 0:02:52]}  cxd5 {[%clk 0:02:56]} 6. d4 {[%clk 0:02:52]}  Bg7 {[%clk 0:02:56]} 7. Ne2 {[%clk 0:02:52]}  O-O {[%clk 0:02:55]} 8. O-O {[%clk 0:02:52]}  Nc6 {[%clk 0:02:55]} 9. Nbc3 {[%clk 0:02:52]}  Bf5 {[%clk 0:02:50]} 10. Nf4 {[%clk 0:02:51]}  e6 {[%clk 0:02:44]} 11. h3 {[%clk 0:02:50]}  h5 {[%clk 0:02:43]} 12. Bf3 {[%clk 0:02:45]}  g5 {[%clk 0:02:17]} 13. Nxh5 {[%clk 0:02:44]}  Bxh3 {[%clk 0:02:16]} 14. Re1 {[%clk 0:02:29]}  Nxh5 {[%clk 0:02:14]} 15. Bxh5 {[%clk 0:02:28]}  f5 {[%clk 0:02:11]} 16. Bf3 {[%clk 0:02:19]}  g4 {[%clk 0:02:08]} 17. Bg2 {[%clk 0:02:19]}  Bxg2 {[%clk 0:01:54]} 18. Kxg2 {[%clk 0:02:18]}  Kf7 {[%clk 0:01:54]} 19. Rh1 {[%clk 0:02:17]}  Rh8 {[%clk 0:01:52]} 20. Bd2 {[%clk 0:02:17]}  Rxh1 {[%clk 0:01:51]} 21. Qxh1 {[%clk 0:02:16]}  Qh8 {[%clk 0:01:50]} 22. Nb5 {[%clk 0:02:15]}  Ke7 {[%clk 0:01:27]} 23. Rc1 {[%clk 0:02:13]}  a6 {[%clk 0:01:24]} 24. Nc3 {[%clk 0:02:00]}  Rc8 {[%clk 0:01:22]} 25. Ne2 {[%clk 0:02:00]}  Kf7 {[%clk 0:01:11]} 26. Nf4 {[%clk 0:01:59]}  Bh6 {[%clk 0:01:10]} 27. Nd3 {[%clk 0:01:53]}  Bg5 {[%clk 0:01:08]} 28. Ne5+ {[%clk 0:01:10]}  Nxe5 {[%clk 0:01:05]} 29. Rxc8 {[%clk 0:01:09]}  Qxc8 {[%clk 0:01:02]} 30. dxe5 {[%clk 0:00:56]}  Kg6 {[%clk 0:00:57]} 31. Bc3 {[%clk 0:00:51]}  Qc6 {[%clk 0:00:54]} 32. Bd4 {[%clk 0:00:48]}  Qc2 {[%clk 0:00:53]} 33. Qh8 {[%clk 0:00:46]}  Qe4+ {[%clk 0:00:48]} 34. Kh2 {[%clk 0:00:42]}  Qf3 {[%clk 0:00:46]} 35. Qg8+ {[%clk 0:00:36]}  Kh6 {[%clk 0:00:40]} 36. Qh8+ {[%clk 0:00:33]}  Kg6 {[%clk 0:00:39]} 37. Qg8+ {[%clk 0:00:33]}  Kh5 {[%clk 0:00:39]} 38. Qh7+ {[%clk 0:00:31]}  Bh6 {[%clk 0:00:38]} 39. Qf7+ {[%clk 0:00:29]}  Kg5 {[%clk 0:00:36]} 40. Qg8+ {[%clk 0:00:26]}  Kh5 {[%clk 0:00:35]} 41. Qf7+ {[%clk 0:00:26]}  Kg5 {[%clk 0:00:34]} 42. Qg8+ {[%clk 0:00:23]}  Kh5 {[%clk 0:00:34]} 43. Qf7+ {[%clk 0:00:22]} 1/2-1/2


[Site "https://www.chess.com"]

[Event "Titled Tuesday Blitz November 08 Early 2022"]
[White "Bilan, Danila"]
[Black "Wirig, Anthony"]
[WhiteFideId "24161918"]
[BlackFideId "615013"]
[WhiteElo "2173"]
[BlackElo "2487"]
[Result "1-0"]
[Round "10"]
[TimeControl "180+1"]
[Date "2022.11.09"]
[WhiteClock "0:00:22"]
[BlackClock "0:01:36"]

1. d4 {[%clk 0:02:57]}  d5 {[%clk 0:02:59]} 2. Nf3 {[%clk 0:02:57]}  c6 {[%clk 0:03:00]} 3. c4 {[%clk 0:02:57]}  Nf6 {[%clk 0:03:01]} 4. Nc3 {[%clk 0:02:57]}  a6 {[%clk 0:03:01]} 5. cxd5 {[%clk 0:02:56]}  cxd5 {[%clk 0:03:02]} 6. Bg5 {[%clk 0:02:57]}  Nc6 {[%clk 0:03:02]} 7. e3 {[%clk 0:02:57]}  Ne4 {[%clk 0:03:01]} 8. Nxe4 {[%clk 0:02:53]}  dxe4 {[%clk 0:03:02]} 9. Nd2 {[%clk 0:02:53]}  Qa5 {[%clk 0:03:00]} 10. Bf4 {[%clk 0:02:41]}  e5 {[%clk 0:03:01]} 11. dxe5 {[%clk 0:02:37]}  Be6 {[%clk 0:02:53]} 12. a3 {[%clk 0:01:58]}  O-O-O {[%clk 0:02:45]} 13. b4 {[%clk 0:01:53]}  Qd5 {[%clk 0:02:43]} 14. Qc2 {[%clk 0:01:27]}  Kb8 {[%clk 0:02:07]} 15. Bc4 {[%clk 0:01:07]}  Qd7 {[%clk 0:02:02]} 16. Bxe6 {[%clk 0:01:01]}  fxe6 {[%clk 0:02:02]} 17. Nxe4 {[%clk 0:00:56]}  Bxb4+ {[%clk 0:01:57]} 18. axb4 {[%clk 0:00:52]}  Nxb4 {[%clk 0:01:58]} 19. Qc4 {[%clk 0:00:40]}  Nd3+ {[%clk 0:01:50]} 20. Ke2 {[%clk 0:00:36]}  Nxf4+ {[%clk 0:01:43]} 21. exf4 {[%clk 0:00:35]}  Rc8 {[%clk 0:01:44]} 22. Qd3 {[%clk 0:00:33]}  Qf7 {[%clk 0:01:37]} 23. Nd6 {[%clk 0:00:32]}  Qh5+ {[%clk 0:01:36]} 24. Qf3 {[%clk 0:00:26]}  Rc1 {[%clk 0:01:36]} 25. Rhxc1 {[%clk 0:00:22]} 1-0


[Site "https://www.chess.com"]

[Event "Titled Tuesday Blitz November 08 Early 2022"]
[White "Bok, Benjamin"]
[Black "Kosteniuk, Alexandra"]
[WhiteFideId "1017063"]
[BlackFideId "4128125"]
[WhiteElo "2658"]
[BlackElo "2469"]
[Result "1-0"]
[Round "10"]
[TimeControl "180+1"]
[Date "2022.11.09"]
[WhiteClock "0:00:10"]
[BlackClock "0:00:02"]

1. d4 {[%clk 0:03:00]}  f5 {[%clk 0:02:59]} 2. g3 {[%clk 0:03:00]}  Nf6 {[%clk 0:02:59]} 3. Bg2 {[%clk 0:03:00]}  g6 {[%clk 0:03:00]} 4. Nf3 {[%clk 0:03:00]}  Bg7 {[%clk 0:03:00]} 5. O-O {[%clk 0:03:01]}  O-O {[%clk 0:03:00]} 6. c4 {[%clk 0:03:02]}  d6 {[%clk 0:02:59]} 7. Nc3 {[%clk 0:03:02]}  a5 {[%clk 0:02:59]} 8. b3 {[%clk 0:02:58]}  e5 {[%clk 0:02:52]} 9. dxe5 {[%clk 0:02:56]}  dxe5 {[%clk 0:02:53]} 10. Ba3 {[%clk 0:02:56]}  Re8 {[%clk 0:02:34]} 11. Qxd8 {[%clk 0:02:52]}  Rxd8 {[%clk 0:02:34]} 12. Nxe5 {[%clk 0:02:08]}  Ne4 {[%clk 0:01:52]} 13. Nxe4 {[%clk 0:02:03]}  Bxe5 {[%clk 0:01:51]} 14. Rad1 {[%clk 0:02:02]}  Nc6 {[%clk 0:01:19]} 15. Ng5 {[%clk 0:01:32]}  Re8 {[%clk 0:01:13]} 16. Bxc6 {[%clk 0:01:10]}  bxc6 {[%clk 0:01:12]} 17. e3 {[%clk 0:01:10]}  a4 {[%clk 0:01:04]} 18. Bc5 {[%clk 0:01:10]}  axb3 {[%clk 0:01:02]} 19. axb3 {[%clk 0:01:11]}  Ra2 {[%clk 0:00:40]} 20. Rd3 {[%clk 0:01:04]}  Bf6 {[%clk 0:00:39]} 21. Nf3 {[%clk 0:01:01]}  Be6 {[%clk 0:00:32]} 22. Rfd1 {[%clk 0:00:57]}  Rea8 {[%clk 0:00:31]} 23. Bd4 {[%clk 0:00:42]}  Kf7 {[%clk 0:00:17]} 24. h4 {[%clk 0:00:31]}  Rb8 {[%clk 0:00:16]} 25. Bxf6 {[%clk 0:00:19]}  Kxf6 {[%clk 0:00:16]} 26. Ng5 {[%clk 0:00:20]}  h6 {[%clk 0:00:15]} 27. Nxe6 {[%clk 0:00:19]}  Kxe6 {[%clk 0:00:16]} 28. Rd7 {[%clk 0:00:17]}  Rxb3 {[%clk 0:00:06]} 29. Rxc7 {[%clk 0:00:17]}  Rbb2 {[%clk 0:00:06]} 30. Rxc6+ {[%clk 0:00:17]}  Ke5 {[%clk 0:00:06]} 31. Rf1 {[%clk 0:00:15]}  g5 {[%clk 0:00:01]} 32. Rxh6 {[%clk 0:00:15]}  g4 {[%clk 0:00:01]} 33. Rc6 {[%clk 0:00:10]}  Rc2 {[%clk 0:00:01]} 34. Kg2 {[%clk 0:00:10]}  Ke4 {[%clk 0:00:01]} 35. Re6+ {[%clk 0:00:10]}  Kd3 {[%clk 0:00:02]} 36. Re5 {[%clk 0:00:10]}  Kxc4 {[%clk 0:00:01]} 37. Rxf5 {[%clk 0:00:10]}  Kd3 {[%clk 0:00:02]} 38. Rf4 {[%clk 0:00:10]} 1-0


[Site "https://www.chess.com"]

[Event "Titled Tuesday Blitz November 08 Early 2022"]
[White "Bortnyk, Olexandr"]
[Black "Andreikin, Dmitry"]
[WhiteFideId "14120828"]
[BlackFideId "4158814"]
[WhiteElo "2723"]
[BlackElo "2736"]
[Result "0-1"]
[Round "10"]
[TimeControl "180+1"]
[Date "2022.11.08"]
[WhiteClock "0:00:01"]
[BlackClock "0:00:02"]

1. e4 {[%clk 0:03:00]}  e5 {[%clk 0:03:00]} 2. Nf3 {[%clk 0:02:59]}  Nc6 {[%clk 0:02:59]} 3. Bb5 {[%clk 0:03:00]}  Nf6 {[%clk 0:02:59]} 4. Qe2 {[%clk 0:03:00]}  a6 {[%clk 0:02:57]} 5. Ba4 {[%clk 0:02:58]}  Bc5 {[%clk 0:02:56]} 6. c3 {[%clk 0:02:58]}  b5 {[%clk 0:02:54]} 7. Bc2 {[%clk 0:02:58]}  O-O {[%clk 0:02:54]} 8. O-O {[%clk 0:02:57]}  d6 {[%clk 0:02:54]} 9. h3 {[%clk 0:02:56]}  Bb6 {[%clk 0:02:50]} 10. d3 {[%clk 0:02:54]}  Ne7 {[%clk 0:02:50]} 11. Rd1 {[%clk 0:02:38]}  Ng6 {[%clk 0:02:49]} 12. Be3 {[%clk 0:02:37]}  Nh5 {[%clk 0:02:44]} 13. d4 {[%clk 0:02:27]}  Ngf4 {[%clk 0:02:41]} 14. Qf1 {[%clk 0:02:19]}  Qf6 {[%clk 0:02:41]} 15. Nbd2 {[%clk 0:02:14]}  c5 {[%clk 0:02:31]} 16. dxe5 {[%clk 0:02:13]}  dxe5 {[%clk 0:02:32]} 17. g4 {[%clk 0:01:36]}  c4 {[%clk 0:02:10]} 18. Kh2 {[%clk 0:01:35]}  Qh6 {[%clk 0:01:26]} 19. Bxb6 {[%clk 0:01:10]}  Bxg4 {[%clk 0:00:59]} 20. hxg4 {[%clk 0:00:52]}  Nf6+ {[%clk 0:00:53]} 21. Kg3 {[%clk 0:00:51]}  Nxg4 {[%clk 0:00:35]} 22. Kxg4 {[%clk 0:00:36]}  Qh5+ {[%clk 0:00:23]} 23. Kg3 {[%clk 0:00:36]}  Qg6+ {[%clk 0:00:23]} 24. Kh2 {[%clk 0:00:25]}  Qh5+ {[%clk 0:00:23]} 25. Kg3 {[%clk 0:00:25]}  Qg6+ {[%clk 0:00:23]} 26. Ng5 {[%clk 0:00:26]}  f6 {[%clk 0:00:11]} 27. Nf3 {[%clk 0:00:24]}  fxg5 {[%clk 0:00:08]} 28. Be3 {[%clk 0:00:24]}  Qh5 {[%clk 0:00:06]} 29. Bxf4 {[%clk 0:00:12]}  Rxf4 {[%clk 0:00:03]} 30. Nh2 {[%clk 0:00:11]}  Raf8 {[%clk 0:00:03]} 31. f3 {[%clk 0:00:07]}  Rh4 {[%clk 0:00:04]} 32. Qg2 {[%clk 0:00:04]}  Rxh2 {[%clk 0:00:03]} 33. Rg1 {[%clk 0:00:02]}  Rxg2+ {[%clk 0:00:03]} 34. Rxg2 {[%clk 0:00:01]}  Rxf3# {[%clk 0:00:02]} 0-1


[Site "https://www.chess.com"]

[Event "Titled Tuesday Blitz November 08 Early 2022"]
[White "Cabezas Solano, David Alejandro"]
[Black "Odegov, Artem"]
[WhiteFideId "6507522"]
[BlackFideId "34183644"]
[WhiteElo "2035"]
[BlackElo "2298"]
[Result "0-1"]
[Round "10"]
[TimeControl "180+1"]
[Date "2022.11.09"]
[WhiteClock "0:00:01"]
[BlackClock "0:00:44"]

1. d4 {[%clk 0:03:00]}  c5 {[%clk 0:02:41]} 2. d5 {[%clk 0:02:59]}  g6 {[%clk 0:02:41]} 3. g3 {[%clk 0:02:57]}  Bg7 {[%clk 0:02:41]} 4. Bg2 {[%clk 0:02:58]}  Nf6 {[%clk 0:02:41]} 5. Nc3 {[%clk 0:02:57]}  O-O {[%clk 0:02:42]} 6. e4 {[%clk 0:02:57]}  d6 {[%clk 0:02:43]} 7. Nf3 {[%clk 0:02:57]}  e6 {[%clk 0:02:44]} 8. O-O {[%clk 0:02:55]}  exd5 {[%clk 0:02:44]} 9. exd5 {[%clk 0:02:56]}  Nbd7 {[%clk 0:02:44]} 10. Nd2 {[%clk 0:02:56]}  Nb6 {[%clk 0:02:43]} 11. a4 {[%clk 0:02:51]}  a5 {[%clk 0:02:42]} 12. h3 {[%clk 0:02:35]}  Bf5 {[%clk 0:02:38]} 13. g4 {[%clk 0:02:26]}  Bd7 {[%clk 0:02:37]} 14. Qe2 {[%clk 0:02:15]}  Re8 {[%clk 0:02:36]} 15. Qd3 {[%clk 0:02:16]}  h5 {[%clk 0:02:35]} 16. g5 {[%clk 0:02:10]}  Nh7 {[%clk 0:02:35]} 17. h4 {[%clk 0:02:02]}  Bf5 {[%clk 0:02:32]} 18. Qg3 {[%clk 0:01:45]}  Be5 {[%clk 0:02:30]} 19. f4 {[%clk 0:01:44]}  Bd4+ {[%clk 0:02:30]} 20. Kh2 {[%clk 0:01:44]}  Re3 {[%clk 0:02:29]} 21. Nf3 {[%clk 0:01:38]}  Re8 {[%clk 0:02:28]} 22. Nxd4 {[%clk 0:01:34]}  cxd4 {[%clk 0:02:29]} 23. Nb5 {[%clk 0:01:34]}  Bxc2 {[%clk 0:02:10]} 24. Nxd4 {[%clk 0:01:31]}  Be4 {[%clk 0:02:11]} 25. f5 {[%clk 0:01:17]}  Bxg2 {[%clk 0:01:50]} 26. Qxg2 {[%clk 0:01:13]}  Qe7 {[%clk 0:01:46]} 27. fxg6 {[%clk 0:01:08]}  fxg6 {[%clk 0:01:47]} 28. Bf4 {[%clk 0:00:55]}  Qe4 {[%clk 0:01:45]} 29. Nb5 {[%clk 0:00:45]}  Qxg2+ {[%clk 0:01:41]} 30. Kxg2 {[%clk 0:00:44]}  Nxd5 {[%clk 0:01:42]} 31. Nxd6 {[%clk 0:00:38]}  Re2+ {[%clk 0:01:41]} 32. Kf3 {[%clk 0:00:37]}  Rxb2 {[%clk 0:01:39]} 33. Be5 {[%clk 0:00:28]}  Rb4 {[%clk 0:01:27]} 34. Rfd1 {[%clk 0:00:19]}  Rf8+ {[%clk 0:01:25]} 35. Ke2 {[%clk 0:00:12]}  Nf4+ {[%clk 0:01:19]} 36. Kd2 {[%clk 0:00:03]}  Ne6 {[%clk 0:01:13]} 37. Ke3 {[%clk 0:00:02]}  Rxh4 {[%clk 0:01:09]} 38. Rf1 {[%clk 0:00:02]}  Rh3+ {[%clk 0:01:08]} 39. Ke4 {[%clk 0:00:02]}  Nhxg5+ {[%clk 0:01:02]} 40. Kd5 {[%clk 0:00:02]}  Rd3+ {[%clk 0:00:57]} 41. Kc4 {[%clk 0:00:03]}  Rdf3 {[%clk 0:00:57]} 42. Rg1 {[%clk 0:00:02]}  h4 {[%clk 0:00:51]} 43. Nxb7 {[%clk 0:00:02]}  h3 {[%clk 0:00:50]} 44. Nc5 {[%clk 0:00:02]}  Rc8 {[%clk 0:00:49]} 45. Bd6 {[%clk 0:00:02]}  Rf5 {[%clk 0:00:46]} 46. Rad1 {[%clk 0:00:01]}  Nxc5 {[%clk 0:00:45]} 47. Rd5 {[%clk 0:00:01]}  Nce6+ {[%clk 0:00:44]} 0-1


[Site "https://www.chess.com"]

[Event "Titled Tuesday Blitz November 08 Early 2022"]
[White "Clawitter, Craig"]
[Black "Nita, Lucian"]
[WhiteFideId "2023105"]
[BlackFideId "1206923"]
[WhiteElo "2163"]
[BlackElo "2092"]
[Result "1-0"]
[Round "10"]
[TimeControl "180+1"]
[Date "2022.11.09"]
[WhiteClock "0:00:11"]
[BlackClock "0:01:07"]

1. e4 {[%clk 0:03:00]}  c5 {[%clk 0:02:59]} 2. Nf3 {[%clk 0:03:00]}  e6 {[%clk 0:02:58]} 3. d4 {[%clk 0:03:01]}  cxd4 {[%clk 0:02:58]} 4. Nxd4 {[%clk 0:03:02]}  Nf6 {[%clk 0:02:58]} 5. Nc3 {[%clk 0:03:01]}  Bb4 {[%clk 0:02:57]} 6. e5 {[%clk 0:03:01]}  Ne4 {[%clk 0:02:54]} 7. Qg4 {[%clk 0:02:55]}  Nxc3 {[%clk 0:02:52]} 8. Qxg7 {[%clk 0:02:30]}  Rf8 {[%clk 0:02:45]} 9. a3 {[%clk 0:02:29]}  Qa5 {[%clk 0:02:38]} 10. Nb3 {[%clk 0:02:19]}  Qd5 {[%clk 0:02:18]} 11. Bh6 {[%clk 0:01:41]}  Qe4+ {[%clk 0:02:04]} 12. Be3 {[%clk 0:01:08]}  Nd5+ {[%clk 0:02:00]} 13. axb4 {[%clk 0:01:07]}  Nxe3 {[%clk 0:01:59]} 14. fxe3 {[%clk 0:01:07]}  Qxc2 {[%clk 0:01:45]} 15. Rc1 {[%clk 0:00:49]}  Qxc1+ {[%clk 0:01:45]} 16. Nxc1 {[%clk 0:00:49]}  Nc6 {[%clk 0:01:45]} 17. b5 {[%clk 0:00:40]}  Ne7 {[%clk 0:01:44]} 18. Bd3 {[%clk 0:00:38]}  b6 {[%clk 0:01:42]} 19. O-O {[%clk 0:00:36]}  Bb7 {[%clk 0:01:41]} 20. Ne2 {[%clk 0:00:30]}  O-O-O {[%clk 0:01:41]} 21. Rxf7 {[%clk 0:00:20]}  Rg8 {[%clk 0:01:40]} 22. Rxe7 {[%clk 0:00:21]}  Rxg7 {[%clk 0:01:40]} 23. Rxg7 {[%clk 0:00:22]}  h6 {[%clk 0:01:39]} 24. Nf4 {[%clk 0:00:18]}  Rh8 {[%clk 0:01:25]} 25. g4 {[%clk 0:00:17]}  Kd8 {[%clk 0:01:23]} 26. h4 {[%clk 0:00:15]}  Bf3 {[%clk 0:01:22]} 27. Kf2 {[%clk 0:00:14]}  Bd1 {[%clk 0:01:21]} 28. Ng6 {[%clk 0:00:13]}  Re8 {[%clk 0:01:19]} 29. Rf7 {[%clk 0:00:12]}  Bxg4 {[%clk 0:01:19]} 30. Rf8 {[%clk 0:00:12]}  Bh5 {[%clk 0:01:18]} 31. Rxe8+ {[%clk 0:00:12]}  Kxe8 {[%clk 0:01:18]} 32. Nf4 {[%clk 0:00:13]}  Bf7 {[%clk 0:01:17]} 33. Bg6 {[%clk 0:00:12]}  Ke7 {[%clk 0:01:17]} 34. Bxf7 {[%clk 0:00:12]}  Kxf7 {[%clk 0:01:18]} 35. h5 {[%clk 0:00:12]}  Ke7 {[%clk 0:01:17]} 36. Kf3 {[%clk 0:00:12]}  d6 {[%clk 0:01:18]} 37. exd6+ {[%clk 0:00:13]}  Kxd6 {[%clk 0:01:18]} 38. Ke4 {[%clk 0:00:13]}  Kd7 {[%clk 0:01:16]} 39. Ke5 {[%clk 0:00:13]}  Ke7 {[%clk 0:01:17]} 40. Nxe6 {[%clk 0:00:13]}  Kf7 {[%clk 0:01:17]} 41. Nc7 {[%clk 0:00:13]}  Ke7 {[%clk 0:01:16]} 42. Kd5 {[%clk 0:00:12]}  Kd7 {[%clk 0:01:15]} 43. Ne6 {[%clk 0:00:12]}  Ke7 {[%clk 0:01:14]} 44. Nf4 {[%clk 0:00:12]}  Kf6 {[%clk 0:01:15]} 45. e4 {[%clk 0:00:12]}  Kg5 {[%clk 0:01:16]} 46. Ke5 {[%clk 0:00:10]}  Kg4 {[%clk 0:01:15]} 47. b4 {[%clk 0:00:09]}  Kg5 {[%clk 0:01:14]} 48. Nd5 {[%clk 0:00:09]}  Kxh5 {[%clk 0:01:14]} 49. Kd6 {[%clk 0:00:10]}  Kg6 {[%clk 0:01:13]} 50. e5 {[%clk 0:00:10]}  h5 {[%clk 0:01:13]} 51. e6 {[%clk 0:00:10]}  h4 {[%clk 0:01:13]} 52. e7 {[%clk 0:00:11]}  Kf7 {[%clk 0:01:13]} 53. Kd7 {[%clk 0:00:11]}  h3 {[%clk 0:01:13]} 54. e8=Q+ {[%clk 0:00:11]}  Kg7 {[%clk 0:01:13]} 55. Qe7+ {[%clk 0:00:11]}  Kh6 {[%clk 0:01:12]} 56. Qe6+ {[%clk 0:00:11]}  Kg5 {[%clk 0:01:12]} 57. Qxh3 {[%clk 0:00:11]}  Kg6 {[%clk 0:01:10]} 58. Qg4+ {[%clk 0:00:11]}  Kf7 {[%clk 0:01:10]} 59. Nxb6 {[%clk 0:00:12]}  axb6 {[%clk 0:01:09]} 60. Qf5+ {[%clk 0:00:12]}  Kg7 {[%clk 0:01:08]} 61. Qe6 {[%clk 0:00:11]}  Kh7 {[%clk 0:01:08]} 62. Qg4 {[%clk 0:00:11]}  Kh6 {[%clk 0:01:07]} 63. Ke7 {[%clk 0:00:11]} 1-0


[Site "https://www.chess.com"]

[Event "Titled Tuesday Blitz November 08 Early 2022"]
[White "Cruz Mendez, Jean Marco"]
[Black "Begunov, Konstantin"]
[WhiteFideId "3526402"]
[BlackFideId "4118510"]
[WhiteElo "2064"]
[BlackElo "2140"]
[Result "1-0"]
[Round "10"]
[TimeControl "180+1"]
[Date "2022.11.09"]
[WhiteClock "0:00:59"]
[BlackClock "0:00:03"]

1. e4 {[%clk 0:03:00]}  c5 {[%clk 0:02:59]} 2. Nf3 {[%clk 0:03:01]}  d6 {[%clk 0:03:00]} 3. d4 {[%clk 0:03:01]}  cxd4 {[%clk 0:03:00]} 4. Nxd4 {[%clk 0:03:02]}  Nf6 {[%clk 0:03:01]} 5. Nc3 {[%clk 0:03:03]}  a6 {[%clk 0:03:01]} 6. Bg5 {[%clk 0:03:02]}  e6 {[%clk 0:03:01]} 7. f4 {[%clk 0:03:02]}  Qb6 {[%clk 0:03:01]} 8. a3 {[%clk 0:03:00]}  Nc6 {[%clk 0:03:01]} 9. Nb3 {[%clk 0:02:51]}  Be7 {[%clk 0:03:00]} 10. Bd3 {[%clk 0:02:49]}  O-O {[%clk 0:02:57]} 11. Qf3 {[%clk 0:02:49]}  Na5 {[%clk 0:02:34]} 12. Nxa5 {[%clk 0:02:41]}  Qxb2 {[%clk 0:02:31]} 13. O-O {[%clk 0:02:41]}  Qxc3 {[%clk 0:02:28]} 14. Nb3 {[%clk 0:02:42]}  e5 {[%clk 0:02:17]} 15. Rae1 {[%clk 0:02:33]}  Be6 {[%clk 0:02:07]} 16. Nc1 {[%clk 0:02:30]}  Qxa3 {[%clk 0:01:57]} 17. h3 {[%clk 0:02:26]}  a5 {[%clk 0:01:47]} 18. g4 {[%clk 0:02:10]}  Qc5+ {[%clk 0:01:29]} 19. Kh2 {[%clk 0:02:05]}  exf4 {[%clk 0:01:29]} 20. Bxf4 {[%clk 0:02:06]}  a4 {[%clk 0:01:27]} 21. e5 {[%clk 0:01:53]}  dxe5 {[%clk 0:01:05]} 22. Rxe5 {[%clk 0:01:53]}  Qb6 {[%clk 0:00:52]} 23. g5 {[%clk 0:01:50]}  Nd7 {[%clk 0:00:38]} 24. Rb5 {[%clk 0:01:49]}  Qd4 {[%clk 0:00:20]} 25. c3 {[%clk 0:01:45]}  Qa7 {[%clk 0:00:12]} 26. Rxb7 {[%clk 0:01:44]}  Qa5 {[%clk 0:00:11]} 27. Rb5 {[%clk 0:01:40]}  Qxc3 {[%clk 0:00:11]} 28. Bxh7+ {[%clk 0:01:39]}  Kxh7 {[%clk 0:00:12]} 29. Qxc3 {[%clk 0:01:39]}  a3 {[%clk 0:00:11]} 30. Qc2+ {[%clk 0:01:31]}  Kg8 {[%clk 0:00:10]} 31. Rb7 {[%clk 0:01:26]}  Rfc8 {[%clk 0:00:11]} 32. Qd3 {[%clk 0:01:21]}  a2 {[%clk 0:00:11]} 33. Nxa2 {[%clk 0:01:18]}  Rxa2+ {[%clk 0:00:12]} 34. Kg3 {[%clk 0:01:18]}  Rac2 {[%clk 0:00:10]} 35. Rxd7 {[%clk 0:01:10]}  R8c3 {[%clk 0:00:10]} 36. Rd4 {[%clk 0:01:07]}  Rxd3+ {[%clk 0:00:10]} 37. Rxd3 {[%clk 0:01:08]}  Bc5 {[%clk 0:00:09]} 38. Rfd1 {[%clk 0:01:04]}  g6 {[%clk 0:00:09]} 39. Rd8+ {[%clk 0:01:03]}  Kh7 {[%clk 0:00:04]} 40. Be5 {[%clk 0:01:03]}  f6 {[%clk 0:00:03]} 41. Bxf6 {[%clk 0:01:01]}  Bf2+ {[%clk 0:00:03]} 42. Kf3 {[%clk 0:00:59]} 1-0


[Site "https://www.chess.com"]

[Event "Titled Tuesday Blitz November 08 Early 2022"]
[White "Csonka, Balazs"]
[Black "Lakshmi C"]
[WhiteFideId "742910"]
[BlackFideId "25035347"]
[WhiteElo "2404"]
[BlackElo "1865"]
[Result "1-0"]
[Round "10"]
[TimeControl "180+1"]
[Date "2022.11.09"]
[WhiteClock "0:00:09"]
[BlackClock "0:00:08"]

1. e4 {[%clk 0:03:00]}  c5 {[%clk 0:02:54]} 2. Nf3 {[%clk 0:03:01]}  Nc6 {[%clk 0:02:53]} 3. Bb5 {[%clk 0:02:57]}  g6 {[%clk 0:02:53]} 4. O-O {[%clk 0:02:46]}  Bg7 {[%clk 0:02:52]} 5. Re1 {[%clk 0:02:46]}  e6 {[%clk 0:02:46]} 6. c3 {[%clk 0:02:43]}  Qb6 {[%clk 0:02:37]} 7. Na3 {[%clk 0:02:38]}  a6 {[%clk 0:02:31]} 8. Nc4 {[%clk 0:02:31]}  Qc7 {[%clk 0:02:29]} 9. Bxc6 {[%clk 0:02:31]}  dxc6 {[%clk 0:02:27]} 10. e5 {[%clk 0:02:24]}  Bf8 {[%clk 0:02:13]} 11. d4 {[%clk 0:02:18]}  b5 {[%clk 0:02:11]} 12. Ncd2 {[%clk 0:01:48]}  Bb7 {[%clk 0:02:09]} 13. Ne4 {[%clk 0:01:44]}  O-O-O {[%clk 0:02:09]} 14. Bg5 {[%clk 0:01:40]}  Rd7 {[%clk 0:02:04]} 15. dxc5 {[%clk 0:00:57]}  Rxd1 {[%clk 0:01:42]} 16. Raxd1 {[%clk 0:00:58]}  Ne7 {[%clk 0:01:42]} 17. Nd6+ {[%clk 0:00:55]}  Kb8 {[%clk 0:01:42]} 18. Nxf7 {[%clk 0:00:55]}  Rg8 {[%clk 0:01:42]} 19. Nd8 {[%clk 0:00:35]}  Bc8 {[%clk 0:01:27]} 20. Nd4 {[%clk 0:00:31]}  Nd5 {[%clk 0:01:06]} 21. N8xc6+ {[%clk 0:00:22]}  Ka8 {[%clk 0:01:04]} 22. Bd8 {[%clk 0:00:22]}  Qf7 {[%clk 0:01:00]} 23. Bb6 {[%clk 0:00:19]}  Nxb6 {[%clk 0:00:58]} 24. cxb6 {[%clk 0:00:19]}  Bc5 {[%clk 0:00:57]} 25. a4 {[%clk 0:00:16]}  bxa4 {[%clk 0:00:55]} 26. Ra1 {[%clk 0:00:16]}  Bxb6 {[%clk 0:00:54]} 27. Rxa4 {[%clk 0:00:16]}  Rf8 {[%clk 0:00:52]} 28. f3 {[%clk 0:00:14]}  Bb7 {[%clk 0:00:50]} 29. Kh1 {[%clk 0:00:14]}  Qd7 {[%clk 0:00:27]} 30. Rb4 {[%clk 0:00:13]}  Bc5 {[%clk 0:00:16]} 31. Rc4 {[%clk 0:00:12]}  Qd5 {[%clk 0:00:14]} 32. Rxc5 {[%clk 0:00:10]}  Qxc5 {[%clk 0:00:14]} 33. Nxe6 {[%clk 0:00:11]}  Qf2 {[%clk 0:00:10]} 34. Ra1 {[%clk 0:00:09]}  Rxf3 {[%clk 0:00:08]} 35. Nc7# {[%clk 0:00:09]} 1-0


[Site "https://www.chess.com"]

[Event "Titled Tuesday Blitz November 08 Early 2022"]
[White "Donskov, Anatoly"]
[Black "Szente Varga, Fruzsina"]
[WhiteFideId "24143413"]
[BlackFideId "712264"]
[WhiteElo "2219"]
[BlackElo "1994"]
[Result "1-0"]
[Round "10"]
[TimeControl "180+1"]
[Date "2022.11.09"]
[WhiteClock "0:01:59"]
[BlackClock "0:02:11"]

1. e4 {[%clk 0:03:00]}  e5 {[%clk 0:02:59]} 2. Nf3 {[%clk 0:03:00]}  Nc6 {[%clk 0:03:00]} 3. Bb5 {[%clk 0:03:00]}  a6 {[%clk 0:03:00]} 4. Ba4 {[%clk 0:03:01]}  Nf6 {[%clk 0:03:00]} 5. Qe2 {[%clk 0:03:02]}  b5 {[%clk 0:02:59]} 6. Bb3 {[%clk 0:03:02]}  Be7 {[%clk 0:02:58]} 7. c3 {[%clk 0:03:02]}  O-O {[%clk 0:02:58]} 8. O-O {[%clk 0:03:03]}  Bb7 {[%clk 0:02:57]} 9. Rd1 {[%clk 0:03:03]}  Na5 {[%clk 0:02:57]} 10. Bc2 {[%clk 0:03:03]}  d6 {[%clk 0:02:56]} 11. d4 {[%clk 0:03:02]}  exd4 {[%clk 0:02:56]} 12. cxd4 {[%clk 0:03:03]}  Qc8 {[%clk 0:02:44]} 13. h3 {[%clk 0:02:57]}  c5 {[%clk 0:02:43]} 14. e5 {[%clk 0:02:57]}  dxe5 {[%clk 0:02:43]} 15. dxe5 {[%clk 0:02:58]}  Nd5 {[%clk 0:02:39]} 16. Rxd5 {[%clk 0:02:51]}  Bxd5 {[%clk 0:02:38]} 17. Qd3 {[%clk 0:02:52]}  g6 {[%clk 0:02:27]} 18. Qxd5 {[%clk 0:02:52]}  Rd8 {[%clk 0:02:25]} 19. Qe4 {[%clk 0:02:51]}  Nc4 {[%clk 0:02:23]} 20. Nc3 {[%clk 0:02:48]}  Qe6 {[%clk 0:02:19]} 21. Bf4 {[%clk 0:02:07]}  Nxb2 {[%clk 0:02:12]} 22. Ng5 {[%clk 0:01:59]}  Bxg5 {[%clk 0:02:11]} 23. Bxg5 {[%clk 0:02:00]}  Rd4 {[%clk 0:02:11]} 24. Qxa8+ {[%clk 0:01:59]} 1-0


[Site "https://www.chess.com"]